bitfinex-derivatives/quotes_BTCF0:USTF0_20250114
["timestamp","ask_amount","ask_price","bid_price","bid_amount"]
[1736851165290,0.051696,96743.0,96742.0,0.051696]
[1736851166684,0.052696,96743.0,96742.0,0.051696]
[1736851167298,0.053696,96743.0,96742.0,0.051696]
[1736851169100,0.001,96743.0,96742.0,0.051696]
[1736851169405,0.002,96743.0,96742.0,0.051696]
[1736851169906,0.001,96743.0,96742.0,0.051696]
[1736851170106,0.002,96743.0,96742.0,0.051696]
[1736851171304,0.002,96743.0,96742.0,0.0620447]
[1736851172509,0.002,96743.0,96742.0,0.1154447]
[1736851172805,0.3608,96764.0,96742.0,0.0637487]
[1736851173000,0.051687,96761.0,96759.0,0.051687]
[1736851174608,0.008,96761.0,96759.0,0.001]
[1736851174908,0.008,96761.0,96760.0,0.051687]
[1736851175104,0.008,96761.0,96760.0,0.104687]
[1736851175699,0.012,96761.0,96760.0,0.104687]
[1736851176301,0.01040136,96777.0,96760.0,0.517587]
[1736851176499,0.004,96761.0,96760.0,0.517587]
[1736851177607,0.012,96761.0,96760.0,0.518587]
[1736851178301,0.008,96761.0,96760.0,0.518587]
[1736851179302,0.008,96761.0,96760.0,0.519587]
[1736851180201,0.05168,96772.0,96768.0,0.051682]
[1736851180408,0.05168,96772.0,96769.0,0.051682]
[1736851180709,0.051681,96772.0,96769.0,0.051682]
[1736851181199,0.051681,96772.0,96770.0,0.051681]
[1736851181600,0.3608,96777.0,96775.0,0.051678]
[1736851181899,0.3608,96777.0,96776.0,0.051678]
[1736851183209,0.3628,96777.0,96776.0,0.051678]
[1736851183713,0.3628,96777.0,96760.0,0.4659]
[1736851183714,0.3628,96777.0,96760.0,0.3608]
[1736851183906,0.3628,96777.0,96750.0,0.051692]
[1736851183907,0.3608,96769.0,96752.0,0.0105114]
[1736851184099,0.051693,96749.0,96744.0,0.23758162]
[1736851184305,0.3608,96745.0,96744.0,0.23758162]
[1736851184501,0.412495,96745.0,96744.0,0.19640628]
[1736851185108,0.051697,96740.0,96730.0,0.15420939]
[1736851185509,0.051697,96740.0,96730.0,0.051703]
[1736851185916,0.051697,96740.0,96736.0,0.01053514]
[1736851186212,0.051705,96725.0,96724.0,0.18588662]
[1736851186513,0.051705,96725.0,96711.0,0.00155105]
[1736851186514,0.412505,96725.0,96711.0,0.00155105]
[1736851186817,0.412512,96713.0,96711.0,0.00155105]
[1736851188508,0.412512,96713.0,96712.0,0.01106799]
[1736851189515,0.413512,96713.0,96712.0,0.01606799]
[1736851190116,0.414512,96713.0,96712.0,0.01606799]
[1736851192812,0.413512,96713.0,96712.0,0.01606799]
[1736851193414,0.412512,96713.0,96712.0,0.00706799]
[1736851193613,0.413512,96713.0,96712.0,0.01606799]
[1736851194015,0.412512,96713.0,96712.0,0.00706799]
[1736851194212,0.412512,96713.0,96712.0,0.01106799]
[1736851194415,0.412512,96713.0,96712.0,0.00806799]
[1736851215118,0.051718,96701.0,96700.0,0.0533]
[1736851215719,0.051718,96701.0,96686.0,0.00155127]
[1736851215720,0.05172,96697.0,96696.0,0.23728662]
[1736851215915,0.41252,96697.0,96696.0,0.17288313]
[1736851217327,0.41252,96697.0,96696.0,0.17688313]
[1736851217528,0.41252,96697.0,96696.0,0.004]
[1736851217926,0.41352,96697.0,96696.0,0.013]
[1736851219329,0.41452,96697.0,96696.0,0.013]
[1736851220118,0.42598413,96697.0,96696.0,0.009]
[1736851220530,0.42498413,96697.0,96678.0,0.01023066]
[1736851220728,0.412529,96681.0,96678.0,0.01023066]
[1736851221731,0.412529,96681.0,96680.0,0.1152]
[1736851222436,0.412529,96681.0,96680.0,0.1172]
[1736851223736,0.412529,96681.0,96680.0,0.1152]
[1736851223933,0.412529,96681.0,96680.0,0.1172]
[1736851235548,0.412529,96681.0,96680.0,0.168929]
[1736851240147,0.36132001,96697.0,96690.0,0.051724]
[1736851240341,0.36132001,96697.0,96687.0,0.10250639]
[1736851240342,0.051723,96693.0,96687.0,0.10250639]
[1736851240543,0.3608,96697.0,96687.0,0.10250639]
[1736851240741,0.3608,96697.0,96696.0,0.051721]
[1736851242142,0.3618,96697.0,96696.0,0.051721]
[1736851242343,0.3638,96697.0,96696.0,0.051721]
[1736851243745,0.3618,96697.0,96696.0,0.051721]
[1736851243953,0.3608,96697.0,96696.0,0.054721]
[1736851244551,0.3608,96697.0,96696.0,0.057721]
[1736851244750,0.3608,96705.0,96704.0,0.051716]
[1736851246852,0.051714,96710.0,96705.0,0.051716]
[1736851247254,0.3608,96715.0,96700.0,0.3608]
[1736851247449,0.3608,96715.0,96714.0,0.051711]
[1736851248152,0.3608,96715.0,96705.0,0.10250639]
[1736851248346,0.412511,96715.0,96710.0,0.051713]
[1736851248545,0.413511,96715.0,96711.0,0.051713]
[1736851248746,0.413511,96715.0,96714.0,0.001]
[1736851249844,0.412511,96715.0,96714.0,0.003]
[1736851250356,0.412511,96715.0,96714.0,0.002]
[1736851251243,0.465011,96715.0,96714.0,0.002]
[1736851251445,0.05172,96698.0,96697.0,0.054]
[1736851251647,0.41252,96698.0,96697.0,0.10572]
[1736851252261,0.05172,96698.0,96697.0,0.11601149]
[1736851252857,0.05172,96698.0,96697.0,0.12001149]
[1736851254059,0.05172,96698.0,96697.0,0.06929149]
[1736851254360,0.41252,96698.0,96697.0,0.06929149]
[1736851254958,0.41252,96698.0,96697.0,0.06829149]
[1736851255156,0.41252,96698.0,96697.0,0.06529149]
[1736851255362,0.41252,96698.0,96697.0,0.06929149]
[1736851256249,0.41252,96698.0,96697.0,0.01529149]
[1736851256653,0.05172,96698.0,96697.0,0.01529149]
[1736851257161,0.05172,96698.0,96697.0,0.01429149]
[1736851257459,0.05172,96698.0,96697.0,0.01529149]
[1736851258249,0.05172,96698.0,96697.0,0.01129149]
[1736851258453,0.05172,96698.0,96697.0,0.01429149]
[1736851258761,0.41252,96698.0,96697.0,0.01429149]
[1736851259153,0.41252,96698.0,96697.0,0.004]
[1736851259356,0.051733,96673.0,96672.0,0.24791136]
[1736851259653,0.412533,96673.0,96672.0,0.24791136]
[1736851260260,0.3608,96673.0,96671.0,0.005]
[1736851260456,0.051734,96672.0,96671.0,0.005]
[1736851261665,0.051734,96672.0,96671.0,0.01]
[1736851261855,0.052734,96672.0,96671.0,0.019]
[1736851263471,0.053734,96672.0,96671.0,0.018]
[1736851263771,0.053734,96672.0,96671.0,1.518]
[1736851266269,0.053734,96672.0,96671.0,0.018]
[1736851276779,0.36136001,96673.0,96671.0,0.318]
[1736851276780,0.00056001,96673.0,96671.0,0.318]
[1736851276980,0.05172,96699.0,96696.0,0.051721]
[1736851277190,0.01054961,96714.0,96698.0,0.3608]
[1736851277483,0.3608,96717.0,96698.0,0.3608]
[1736851277484,0.3608,96708.0,96704.0,0.10250639]
[1736851277685,0.051717,96703.0,96698.0,0.46330639]
[1736851277988,0.3608,96708.0,96693.0,0.10250639]
[1736851278183,0.05172,96698.0,96693.0,0.10250639]
[1736851278481,0.054,96697.0,96691.0,0.3608]
[1736851278679,0.054,96697.0,96676.0,0.36235157]
[1736851278882,0.051727,96685.0,96680.0,0.10250639]
[1736851279078,0.1031,96684.0,96676.0,0.36235157]
[1736851279283,0.1031,96684.0,96676.0,0.00155157]
[1736851279284,0.051731,96677.0,96676.0,0.00155157]
[1736851280086,0.051728,96682.0,96676.0,0.00155157]
[1736851280287,0.1031,96684.0,96676.0,0.00155157]
[1736851280288,0.0502,96684.0,96676.0,0.00155157]
[1736851280589,0.051722,96694.0,96683.0,0.3608]
[1736851280783,0.051722,96694.0,96684.0,0.10250639]
[1736851281691,0.051722,96694.0,96691.0,0.051724]
[1736851281881,0.052722,96694.0,96692.0,0.051723]
[1736851282275,0.052722,96694.0,96684.0,0.11050639]
[1736851282480,0.052722,96694.0,96693.0,0.051723]
[1736851283176,0.051722,96694.0,96693.0,0.051723]
[1736851284887,0.051722,96694.0,96693.0,0.052723]
[1736851285375,0.051722,96694.0,96693.0,0.056723]
[1736851288290,0.051722,96694.0,96693.0,0.005]
[1736851296088,0.051722,96694.0,96693.0,0.056723]
[1736851301090,0.051722,96694.0,96693.0,0.005]
[1736851303991,0.00155185,96697.0,96693.0,0.056723]
[1736851304293,0.00155185,96697.0,96696.0,0.412521]
[1736851304485,0.05327185,96697.0,96696.0,0.412521]
[1736851304690,0.05327185,96697.0,96696.0,0.3608]
[1736851305199,0.051721,96695.0,96694.0,0.051722]
[1736851305896,0.051721,96695.0,96694.0,0.412522]
[1736851306691,0.051721,96695.0,96694.0,0.415522]
[1736851307400,0.051721,96695.0,96694.0,0.416522]
[1736851309401,0.051721,96695.0,96694.0,0.3648]
[1736851309798,0.051721,96695.0,96694.0,0.004]
[1736851309799,0.412521,96695.0,96694.0,0.004]
[1736851317011,0.42402386,96695.0,96684.0,0.10250639]
[1736851317315,0.051721,96695.0,96694.0,0.051722]
[1736851317514,0.051721,96697.0,96695.0,0.051721]
[1736851317702,0.3608,96701.0,96689.0,0.3608]
[1736851317906,0.051724,96690.0,96689.0,0.3608]
[1736851319415,0.0630998,96690.0,96689.0,0.3658]
[1736851319714,0.0630998,96690.0,96689.0,0.3678]
[1736851320416,0.4238998,96690.0,96689.0,0.007]
[1736851321717,0.051732,96676.0,96675.0,0.24791136]
[1736851323018,0.052732,96676.0,96675.0,0.009]
[1736851323316,0.052732,96676.0,96675.0,0.014]
[1736851326220,0.051712,96714.0,96676.0,0.051731]
[1736851326421,0.051712,96713.0,96703.0,0.3608]
[1736851326722,0.24617554,96708.0,96703.0,0.3608]
[1736851327207,0.24617554,96708.0,96706.0,0.051716]
[1736851327521,0.051706,96725.0,96714.0,0.051711]
[1736851327716,0.0989,96739.0,96714.0,0.3608]
[1736851327918,0.051705,96726.0,96725.0,0.3608]
[1736851329016,0.0989,96739.0,96725.0,0.3608]
[1736851329017,0.10936815,96739.0,96725.0,0.3608]
[1736851329219,0.0517,96735.0,96733.0,0.051701]
[1736851329516,0.0492,96739.0,96725.0,0.3608]
[1736851329821,0.0492,96739.0,96738.0,0.051698]
[1736851330616,0.0522,96739.0,96738.0,0.051698]
[1736851331215,0.0572,96739.0,96738.0,0.051698]
[1736851331618,0.0572,96739.0,96738.0,0.06202713]
[1736851333024,0.0632,96739.0,96738.0,0.06302713]
[1736851333421,0.014,96739.0,96738.0,0.06302713]
[1736851334623,0.014,96739.0,96738.0,0.42382713]
[1736851336022,0.05169,96755.0,96753.0,0.05169]
[1736851336221,0.051687,96761.0,96755.0,0.051689]
[1736851336425,0.051687,96761.0,96756.0,0.051689]
[1736851336627,0.051687,96761.0,96751.0,0.10250639]
[1736851337129,0.004,96755.0,96752.0,0.051691]
[1736851337318,0.004,96755.0,96747.0,0.3608]
[1736851337319,0.006,96755.0,96754.0,0.05169]
[1736851337719,0.002,96755.0,96754.0,0.05169]
[1736851338621,0.002,96755.0,96747.0,0.3608]
[1736851339334,0.002,96755.0,96753.0,0.05169]
[1736851339521,0.005,96755.0,96753.0,0.05169]
[1736851340025,0.002,96755.0,96753.0,0.05169]
[1736851340229,0.001,96755.0,96754.0,0.05169]
[1736851340726,0.004,96755.0,96754.0,0.05169]
[1736851341327,0.005,96755.0,96754.0,0.05169]
[1736851341832,0.0508,96768.0,96755.0,0.051689]
[1736851342130,0.0508,96768.0,96767.0,0.051683]
[1736851342517,0.01223037,96775.0,96769.0,0.051682]
[1736851342518,0.051681,96770.0,96769.0,0.051682]
[1736851342821,0.0019707,96775.0,96774.0,0.051679]
[1736851343023,0.0536497,96775.0,96774.0,0.051679]
[1736851343220,0.0019707,96775.0,96774.0,0.051679]
[1736851344132,0.0069707,96775.0,96774.0,0.051679]
[1736851345331,0.0065507,96775.0,96774.0,0.051679]
[1736851345928,0.0105507,96775.0,96774.0,0.052679]
[1736851346233,0.0105507,96775.0,96774.0,0.06318334]
[1736851347131,0.051687,96760.0,96759.0,0.3608]
[1736851347542,0.051692,96754.0,96753.0,0.05169]
[1736851348442,0.3608,96781.0,96767.0,0.051683]
[1736851348443,0.051682,96769.0,96767.0,0.051683]
[1736851348644,0.01107071,96775.0,96774.0,0.051679]
[1736851348848,0.052,96780.0,96774.0,0.412479]
[1736851349045,0.052,96780.0,96779.0,0.051677]
[1736851349349,0.051673,96785.0,96784.0,0.051674]
[1736851350647,0.054673,96785.0,96784.0,0.051674]
[1736851350948,0.060673,96785.0,96784.0,0.052674]
[1736851351953,0.060673,96785.0,96784.0,0.06292913]
[1736851357656,0.060673,96785.0,96784.0,0.001]
[1736851362351,0.051679,96775.0,96774.0,0.37086565]
[1736851363055,0.051679,96775.0,96774.0,0.42254465]
[1736851363950,0.052679,96775.0,96774.0,0.42254465]
[1736851364253,0.053679,96775.0,96774.0,0.42254465]
[1736851364456,0.053679,96775.0,96774.0,0.37086565]
[1736851365062,0.002,96775.0,96774.0,0.42254465]
[1736851367660,0.051673,96786.0,96785.0,0.051673]
[1736851367862,0.051673,96786.0,96785.0,0.412473]
[1736851368052,0.0504,96791.0,96790.0,0.051671]
[1736851370562,0.0584,96791.0,96790.0,0.052671]
[1736851370760,0.0584,96791.0,96790.0,0.001]
[1736851370954,0.051673,96786.0,96785.0,0.3608]
[1736851371159,0.3608,96789.0,96777.0,0.01015812]
[1736851371348,0.3608,96789.0,96776.0,0.55692]
[1736851371349,0.051678,96777.0,96776.0,0.55692]
[1736851371555,0.051678,96777.0,96776.0,0.55588]
[1736851372861,0.3608,96781.0,96773.0,0.30967511]
[1736851373063,0.051679,96774.0,96773.0,0.30967511]
[1736851373257,0.3608,96781.0,96773.0,0.0103542]
[1736851373466,0.05168,96772.0,96771.0,0.18566681]
[1736851374667,0.05168,96772.0,96771.0,0.001]
[1736851375465,0.41248,96772.0,96771.0,0.001]
[1736851376066,0.3608,96772.0,96762.0,0.18566681]
[1736851376260,0.051684,96766.0,96762.0,0.18566681]
[1736851376972,0.051684,96766.0,96761.0,0.06179665]
[1736851377273,0.051684,96766.0,96765.0,0.00255011]
[1736851377460,0.051681,96771.0,96768.0,0.051682]
[1736851377660,0.00052001,96772.0,96769.0,0.051681]
[1736851377864,0.051679,96775.0,96772.0,0.05168]
[1736851378072,0.051679,96774.0,96772.0,0.05168]
[1736851378266,0.097977,96779.0,96765.0,0.1070565]
[1736851378469,0.097977,96779.0,96766.0,0.0496]
[1736851378665,0.0463,96779.0,96767.0,1.5]
[1736851378870,0.051678,96777.0,96766.0,0.0496]
[1736851379071,0.051678,96777.0,96775.0,0.051679]
[1736851380376,0.051678,96776.0,96775.0,0.051679]
[1736851381170,0.051678,96776.0,96775.0,0.06185054]
[1736851382262,0.051678,96776.0,96775.0,0.01017154]
[1736851382467,0.0463,96779.0,96770.0,0.051681]
[1736851382672,0.05168,96772.0,96765.0,0.1040565]
[1736851382871,0.05168,96772.0,96771.0,0.051681]
[1736851383973,0.05168,96772.0,96771.0,0.052681]
[1736851384478,0.05168,96772.0,96771.0,0.053681]
[1736851388369,0.05168,96772.0,96771.0,0.002]
[1736851391576,0.05168,96772.0,96771.0,0.001]
[1736851391881,0.05168,96772.0,96771.0,0.002]
[1736851392370,0.051677,96778.0,96777.0,0.051677]
[1736851392572,0.051672,96787.0,96786.0,0.051672]
[1736851392871,0.05167,96793.0,96792.0,0.051669]
[1736851393171,0.05167,96793.0,96792.0,1.551669]
[1736851393376,0.05167,96793.0,96792.0,0.051669]
[1736851394484,0.05767,96793.0,96792.0,0.052669]
[1736851394779,0.05767,96793.0,96792.0,0.18666681]
[1736851395882,0.06067,96793.0,96792.0,0.18666681]
[1736851396079,0.06067,96793.0,96792.0,0.001]
[1736851400784,0.06067,96793.0,96792.0,0.05267]
[1736851401681,0.009,96793.0,96792.0,0.05267]
[1736851402679,0.060669,96793.0,96792.0,0.05267]
[1736851409690,0.060669,96793.0,96792.0,0.001]
[1736851411192,0.060669,96793.0,96792.0,0.05267]
[1736851412979,0.1,96800.0,96799.0,0.051666]
[1736851413177,0.4073,96807.0,96795.0,0.051668]
[1736851413178,0.051662,96806.0,96795.0,0.051668]
[1736851413383,0.051662,96806.0,96797.0,0.051667]
[1736851413586,0.051663,96805.0,96797.0,0.051667]
[1736851413791,0.3608,96807.0,96796.0,0.10250639]
[1736851413979,0.051665,96801.0,96800.0,0.051665]
[1736851415688,0.052665,96801.0,96800.0,0.051665]
[1736851417487,0.052665,96801.0,96800.0,0.06220479]
[1736851417890,0.001,96801.0,96800.0,0.06220479]
[1736851422186,0.052665,96801.0,96800.0,0.06220479]
[1736851425001,0.051667,96796.0,96795.0,0.29922375]
[1736851425788,0.051667,96796.0,96795.0,0.23737136]
[1736851425988,0.051667,96796.0,96795.0,0.24766833]
[1736851426803,0.051667,96796.0,96795.0,0.06196497]
[1736851428204,0.41298201,96807.0,96806.0,0.051662]
[1736851428205,0.36132001,96807.0,96806.0,0.051662]
[1736851428703,0.0443,96825.0,96806.0,1.5]
[1736851429002,0.0434,96832.0,96831.0,0.051649]
[1736851429308,0.3608,96836.0,96835.0,0.051647]
[1736851429701,0.051648,96833.0,96831.0,0.051648]
[1736851430201,0.051648,96833.0,96831.0,0.052648]
[1736851430602,0.051648,96833.0,96832.0,0.051648]
[1736851431497,0.051648,96833.0,96832.0,0.0618009]
[1736851431899,0.054648,96833.0,96832.0,0.0618009]
[1736851432495,0.003,96833.0,96832.0,0.0618009]
[1736851433106,0.003,96833.0,96832.0,0.0628009]
[1736851435507,0.003,96833.0,96832.0,0.0111529]
[1736851435706,0.054648,96833.0,96832.0,0.0628009]
[1736851437110,0.003,96833.0,96832.0,0.0628009]
[1736851438413,0.054648,96833.0,96832.0,0.0628009]
[1736851438612,0.054648,96833.0,96832.0,0.001]
[1736851439213,0.051653,96823.0,96812.0,0.00154927]
[1736851439517,0.051658,96813.0,96812.0,0.00154927]
[1736851440515,0.051658,96813.0,96808.0,0.11478652]
[1736851440516,0.051661,96809.0,96808.0,0.11478652]
[1736851440820,0.051666,96798.0,96790.0,0.18521547]
[1736851441021,0.05167,96791.0,96790.0,0.28772186]
[1736851442319,0.05167,96791.0,96790.0,0.10350639]
[1736851443213,0.05167,96791.0,96790.0,0.10450639]
[1736851443412,0.05167,96791.0,96790.0,0.002]
[1736851444008,0.051669,96794.0,96793.0,0.051668]
[1736851444613,0.051664,96803.0,96802.0,0.051664]
[1736851444816,0.051667,96798.0,96797.0,0.051667]
[1736851445521,0.051669,96794.0,96793.0,0.3608]
[1736851446916,0.051669,96794.0,96793.0,0.3618]
[1736851447617,0.051669,96794.0,96793.0,0.3628]
[1736851447823,0.051668,96797.0,96796.0,0.051667]
[1736851449325,0.051665,96802.0,96801.0,0.051664]
[1736851449822,0.3608,96803.0,96802.0,0.051664]
[1736851451426,0.3608,96803.0,96802.0,0.052664]
[1736851452227,0.3608,96803.0,96802.0,0.055664]
[1736851452924,0.3608,96803.0,96802.0,0.06597482]
[1736851454414,0.051659,96813.0,96812.0,0.051658]
[1736851455227,0.00154993,96818.0,96816.0,0.051656]
[1736851455430,0.00154993,96818.0,96817.0,0.051656]
[1736851456623,0.00254993,96818.0,96817.0,0.051656]
[1736851459424,0.00254993,96818.0,96817.0,0.06179791]
[1736851462725,0.051643,96842.0,96817.0,0.01014191]
[1736851462925,0.051649,96832.0,96828.0,0.10250639]
[1736851463132,0.051649,96832.0,96831.0,0.051649]
[1736851464135,0.052649,96832.0,96831.0,0.051649]
[1736851464727,0.05165,96829.0,96827.0,0.05165]
[1736851465032,0.05165,96829.0,96828.0,0.05165]
[1736851466432,0.05365,96829.0,96828.0,0.05165]
[1736851484744,0.05365,96829.0,96824.0,0.051652]
[1736851484745,0.051653,96825.0,96824.0,0.051652]
[1736851485035,0.051653,96825.0,96823.0,0.05137778]
[1736851485036,0.051653,96824.0,96823.0,0.01007778]
[1736851485242,0.051654,96821.0,96820.0,0.051654]
[1736851488435,0.052654,96821.0,96820.0,0.051654]
[1736851491239,0.001,96821.0,96820.0,0.051654]
[1736851492932,0.001,96821.0,96820.0,1.551654]
[1736851493245,0.001,96821.0,96820.0,1.912454]
[1736851493555,0.052654,96821.0,96820.0,0.051654]
[1736851493934,0.001,96821.0,96820.0,0.051654]
[1736851494536,0.052654,96821.0,96820.0,0.051654]
[1736851494743,0.051654,96821.0,96820.0,0.051654]
[1736851495651,0.051657,96817.0,96816.0,0.051656]
[1736851497844,0.051657,96817.0,96816.0,0.052656]
[1736851498250,0.051657,96817.0,96816.0,0.053656]
[1736851500651,0.091851,96828.0,96816.0,0.002]
[1736851500855,0.051654,96821.0,96820.0,0.051654]
[1736851501061,0.091851,96828.0,96818.0,0.10250639]
[1736851501358,0.051655,96819.0,96818.0,0.15416239]
[1736851501656,0.051655,96819.0,96818.0,0.051656]
[1736851503143,0.051655,96819.0,96818.0,0.052656]
[1736851509851,0.051655,96819.0,96818.0,0.053656]
[1736851510258,0.051655,96819.0,96818.0,0.054656]
[1736851510959,0.051655,96819.0,96818.0,0.053656]
[1736851511163,0.051655,96819.0,96818.0,0.054656]
[1736851511363,0.051655,96819.0,96818.0,0.415456]
[1736851512057,0.0402,96828.0,96818.0,0.3618]
[1736851512262,0.051653,96823.0,96822.0,0.051653]
[1736851515665,0.051656,96819.0,96818.0,0.051656]
[1736851516862,0.051656,96819.0,96818.0,0.06284195]
[1736851517953,0.051656,96819.0,96818.0,0.06484195]
[1736851519764,0.051656,96819.0,96818.0,0.01318595]
[1736851519963,0.051656,96819.0,96818.0,0.003]
[1736851520569,0.412456,96819.0,96818.0,0.003]
[1736851521370,0.412456,96819.0,96818.0,1.503]
[1736851521866,0.48464527,96819.0,96818.0,1.503]
[1736851522975,0.48564527,96819.0,96818.0,1.503]
[1736851523267,0.051665,96801.0,96800.0,0.10250639]
[1736851523472,0.051665,96801.0,96796.0,0.051667]
[1736851523473,0.051665,96800.0,96799.0,0.00108]
[1736851523663,0.051667,96797.0,96796.0,0.051667]
[1736851524175,0.051667,96797.0,96796.0,1.56194363]
[1736851525264,0.051667,96797.0,96796.0,1.51027663]
[1736851525464,0.051667,96797.0,96796.0,1.51927663]
[1736851526465,0.051667,96797.0,96796.0,1.52427663]
[1736851540072,0.3608,96803.0,96802.0,0.051664]
[1736851540073,0.412464,96803.0,96802.0,0.051664]
[1736851540273,0.05166,96810.0,96809.0,0.05166]
[1736851540676,0.05166,96810.0,96809.0,1.55166]
[1736851542188,0.05166,96810.0,96809.0,1.5]
[1736851542381,0.05166,96810.0,96809.0,1.506]
[1736851542889,0.05166,96810.0,96809.0,1.508]
[1736851543078,0.41246,96810.0,96809.0,1.508]
[1736851543678,0.41246,96810.0,96809.0,1.559661]
[1736851543887,0.05166,96810.0,96809.0,1.559661]
[1736851544486,0.05166,96810.0,96809.0,1.920461]
[1736851544884,0.05166,96810.0,96809.0,1.559661]
[1736851545886,0.05166,96810.0,96809.0,1.56997224]
[1736851557418,0.01055307,96828.0,96809.0,1.56997224]
[1736851557419,0.051653,96825.0,96824.0,0.05165]
[1736851557616,0.3608,96839.0,96818.0,0.3608]
[1736851557812,0.051651,96828.0,96827.0,0.05165]
[1736851558211,0.051651,96828.0,96827.0,1.55165]
[1736851559427,0.052651,96828.0,96827.0,1.91245]
[1736851559609,0.052651,96828.0,96827.0,1.92295385]
[1736851559610,0.054651,96828.0,96827.0,1.92295385]
[1736851560317,0.3608,96839.0,96827.0,1.87130385]
[1736851560517,0.24588803,96855.0,96839.0,0.051644]
[1736851560718,0.24588803,96855.0,96840.0,0.0428]
[1736851560719,0.051642,96844.0,96840.0,0.0428]
[1736851560915,0.051643,96843.0,96840.0,0.0854]
[1736851561312,0.051643,96843.0,96841.0,0.051643]
[1736851561618,0.051643,96842.0,96841.0,0.051643]
[1736851562222,0.051641,96846.0,96845.0,0.051641]
[1736851562520,0.051641,96846.0,96845.0,0.412441]
[1736851563017,0.0404,96854.0,96850.0,0.051638]
[1736851563018,0.051638,96851.0,96850.0,0.051638]
[1736851563221,0.051636,96855.0,96853.0,0.051637]
[1736851563408,0.051636,96855.0,96854.0,0.051637]
[1736851563916,0.0828,96867.0,96845.0,0.3608]
[1736851563917,0.051633,96862.0,96861.0,0.051632]
[1736851565022,0.05163,96866.0,96865.0,0.05163]
[1736851566623,0.05163,96866.0,96860.0,0.3608]
[1736851566624,0.05163,96866.0,96860.0,0.051633]
[1736851566922,0.05163,96866.0,96852.0,0.10249371]
[1736851566923,0.051635,96858.0,96857.0,0.051635]
[1736851568418,0.054635,96858.0,96857.0,0.051635]
[1736851569421,0.054635,96858.0,96857.0,0.052635]
[1736851572022,0.054635,96858.0,96857.0,0.001]
[1736851573426,0.054635,96858.0,96857.0,0.052635]
[1736851574131,0.054635,96858.0,96857.0,0.06284766]
[1736851575220,0.003,96858.0,96857.0,0.06284766]
[1736851575717,0.0397,96874.0,96857.0,0.06284766]
[1736851575922,0.051628,96871.0,96870.0,0.051626]
[1736851578215,0.051628,96871.0,96870.0,0.06202946]
[1736851578829,0.051628,96871.0,96870.0,0.01040346]
[1736851579025,0.051628,96871.0,96865.0,0.051631]
[1736851579328,0.3608,96866.0,96861.0,0.10249371]
[1736851579528,0.051635,96860.0,96859.0,0.051634]
[1736851580919,0.051635,96860.0,96859.0,0.057634]
[1736851581318,0.051635,96860.0,96859.0,0.053634]
[1736851581523,0.051635,96860.0,96859.0,0.056634]
[1736851582119,0.051635,96860.0,96859.0,0.01556359]
[1736851582722,0.051635,96860.0,96859.0,0.005]
[1736851583129,0.051635,96860.0,96859.0,0.003]
[1736851583330,0.412435,96860.0,96859.0,0.003]
[1736851583529,0.412435,96860.0,96859.0,0.001]
[1736851583724,0.413435,96860.0,96831.0,0.18551514]
[1736851583920,0.051644,96841.0,96840.0,0.11260254]
[1736851584119,0.051644,96841.0,96840.0,0.01010883]
[1736851584334,0.051645,96839.0,96838.0,0.051645]
[1736851584526,0.3608,96843.0,96831.0,0.10249371]
[1736851584726,0.051648,96834.0,96833.0,0.051647]
[1736851585327,0.051645,96839.0,96838.0,0.051645]
[1736851587038,0.051645,96839.0,96838.0,0.052645]
[1736851587432,0.051645,96839.0,96838.0,0.054645]
[1736851588332,0.06270052,96860.0,96840.0,0.051644]
[1736851588333,0.051641,96847.0,96840.0,0.051644]
[1736851588524,0.051641,96847.0,96840.0,0.10249371]
[1736851588729,0.051641,96847.0,96838.0,0.003]
[1736851588930,0.051641,96847.0,96839.0,1.5]
[1736851589135,0.051638,96852.0,96849.0,0.051639]
[1736851589337,0.051638,96852.0,96851.0,0.051638]
[1736851591035,0.3608,96862.0,96851.0,0.051638]
[1736851591233,0.051632,96864.0,96854.0,0.3608]
[1736851591428,0.051629,96868.0,96866.0,0.05163]
[1736851591636,0.4015,96870.0,96869.0,0.051629]
[1736851592230,0.0407,96870.0,96869.0,0.051629]
[1736851594331,0.0407,96870.0,96869.0,0.06201824]
[1736851596138,0.092328,96870.0,96860.0,0.10249371]
[1736851596529,0.051633,96861.0,96860.0,0.10249371]
[1736851596740,0.051633,96861.0,96855.0,0.18551514]
[1736851596741,0.051636,96856.0,96855.0,0.18551514]
[1736851596942,0.412436,96856.0,96855.0,0.18551514]
[1736851597442,0.051636,96855.0,96854.0,0.01008565]
[1736851597637,0.05164,96847.0,96846.0,0.10249371]
[1736851597941,0.3608,96848.0,96846.0,0.010362]
[1736851598142,0.3608,96848.0,96842.0,0.051643]
[1736851598343,0.051642,96843.0,96842.0,0.051643]
[1736851599045,0.051645,96839.0,96837.0,0.15413871]
[1736851599242,0.051645,96839.0,96838.0,0.051645]
[1736851599736,0.3608,96848.0,96837.0,0.11289696]
[1736851599943,0.051643,96843.0,96838.0,0.051645]
[1736851600140,0.3608,96848.0,96837.0,0.11289696]
[1736851600335,0.051645,96838.0,96837.0,0.01040325]
[1736851600540,0.051647,96834.0,96833.0,0.3608]
[1736851600736,0.051647,96834.0,96833.0,0.37131874]
[1736851602341,0.051647,96834.0,96833.0,0.37631874]
[1736851602739,0.051647,96834.0,96833.0,0.37931874]
[1736851603635,0.051647,96834.0,96833.0,0.37631874]
[1736851603836,0.051647,96834.0,96833.0,0.37331874]
[1736851604039,0.051647,96834.0,96833.0,0.37631874]
[1736851610634,0.051642,96844.0,96834.0,0.051647]